Workbook

Sheet Riskk (hidden)
A1: linda | B1: UPSW | H1: =COUNT(H3:H20) -> 0 | I1: FALSE
B2: Userid | H2: Main/sub | I2: Caption | J2: On Action | K2: NewGroup
A3: 3 | B3: UserLevel
A4: 2006-05-09T11:19:39 | B4: LoginTime
B5: LogoutTime

Sheet Login
B2: Riskk | H2: Box 389, Lot 7.16, Wisma Central, Jln Ampang, 50450 Kuala Lumpur
B3: Sdn Bhd (CN 388306K)
B9: SC REPORT
J18: `

Sheet Main (hidden)
A1: Riskk | D1: Box 389, Lot 7.16, Wisma Central, Jln Ampang, 50450 Kuala Lumpur
A2: Sdn Bhd (CN 388306K)
B5: Report Detail | J5: Sheet | K5: Print
B6: Company : | C6: BIMB Investment Management Berhad | J6: UTFMain | K6: YES
B7: Fund : | C7: IF | J7: UTFList | K7: YES
B8: Fund Name : | C8: =VLOOKUP(FundCode,InFund!$A:$D,2,0) -> BIMB I Flexi Fund | J8: UTF1 | K8: YES
B9: Fund Prefix : | C9: =VLOOKUP(FundCode,InFund!$A:$G,7,0) -> IF | J9: UTF2A | K9: YES
B10: Inception Date : | C10: =VLOOKUP(FundCode,InFund!$A:$D,3,0) -> 2015-04-01 | J10: UTF2B | K10: YES
B11: Start Of Year : | C11: =EOMONTH(EOM,-MONTH(EOM))+1 -> 2016-01-01 | J11: UTF2C | K11: YES
B12: End of Last Month : | C12: =EOMONTH(C13,-1) -> 2016-02-29 | J12: UTF2D | K12: YES
B13: Report As At : | C13: 2016-03-31 | J13: UTF2E | K13: YES
B14: Index Bench Mark : | C14: =VLOOKUP(FundCode,InFund!$A:$E,5,0) -> FBMKLCI | J14: UTF2F | K14: YES
B15: Fund Currency : | C15: =VLOOKUP(FundCode,InFund!$A:$F,6,0) -> MYR | J15: UTF2G | K15: YES
J16: UTF2H | K16: YES
J17: UTF3A | K17: YES
B18: Current Date : | C18: =TEXT(NOW(),"DD-MMM-YY") -> 11-Apr-16 | J18: UTF3B | K18: YES
B19: Current Time : | C19: =TEXT(NOW(),"HH:MM:SS") -> 11:17:36 | J19: UTF3C | K19: YES
B20: Company ID: | C20: BI | J20: UTF3D | K20: YES
B21: Current User : | J21: UTF4A | K21: YES
J22: UTF5 | K22: YES
J23: UTF6 | K23: YES
J24: UTF7 | K24: YES

Sheet UTFMain (hidden)
D2: UTF COMPLIANCE RETURNS
D3: DECLARATION/VERIFICATION FORM
D4: ="For the Month Ended " & TEXT(EOM,"MMM yyyy") -> For the Month Ended Mar 2016
A5: =EDATE(EOM,0) -> 2016-03-31
D7: Management Company | F7: =": " &CompanyName -> : BIMB Investment Management Berhad
D8: Trustee | F8: =": " & VLOOKUP(FundCode,InFund!$A:$H,8,0) -> : AMANAHRAYA TRUSTEES BERHAD
D9: Fund | F9: =": " &FundName -> : BIMB I Flexi Fund
C11: 2007-06-12 | D11: Management company Declaration | G11: Trustee Declaration
D13: 1. The attached Compliance Returns are complete, true and accurate | G13: 1. The attached Compliance Returns are complete, true and accurate
D14: to the best of my knowledge and belief. | G14: to the best of my knowledge and belief.
D16: Signature : | G16: Signature :
D19: Name : | G19: Name :
D21: Designation : | G21: Designation :
D23: IC/Passport no : | G23: IC/Passport no :
D25: Date : | G25: Date :
D28: Declaration of the Designated Person responsible for all compliance matters
D29: 1. The attached Compliance Returns are complete, true and accurate to the best of my knowledge and belief.
D32: Signature : | G32: Name :
D34: IC/Passport no : | G34: Designation :
D36: Date :

Sheet UTFList (hidden)
D2: UTF COMPLIANCE RETURNS
D3: CHCEKLIST
D4: ="For the Month Ended " & TEXT(EOM,"MMM yyyy") -> For the Month Ended Mar 2016
A6: =EDATE(EOM,0) -> 2016-03-31
D8: Management Company | F8: =": " &CompanyName -> : BIMB Investment Management Berhad
D9: Fund | F9: =": " &FundName -> : BIMB I Flexi Fund
C11: 2007-06-12
D13: UTF Compliance 1 | F13: Manager's Box | H13: =IF('UTF1'!J14="","","Y") -> 
D14: UTF Compliance 2A | F14: Investments in Ordinary Shares of a Single Issuer | H14: =IF(UTF2A!G14="","","Y") -> 
D15: UTF Compliance 2B | F15: Investments in Transferable Securities And Money Market Instruments of a Single Issuer | H15: =IF(UTF2B!J14="","","Y") -> 
D16: UTF Compliance 2C | F16: Placements of Deposits with a Single Institution | H16: =IF(UTF2C!G14="","","Y") -> 
D17: UTF Compliance 2D | F17: Investments in OTC Derivative of a Single Counter-Party | H17: =IF(UTF2D!G14="","","Y") -> 
D18: UTF Compliance 2E | F18: Investment in Structured Product of a Single Counter-Party | H18: =IF(UTF2E!G14="","","Y") -> 
D19: UTF Compliance 2F | F19: Aggregate Investments of a Single Issuer/Institution | H19: =IF(UTF2F!H14="","","Y") -> 
D20: UTF Compliance 2G | F20: Investments in Units/Shares of a Single Collective Investment Scheme | H20: =IF(UTF2G!G14="","","Y") -> 
D21: UTF Compliance 2H | F21: Investments in Transferable Securities And Money Market Instruments of a Group of Companies | H21: =IF(UTF2H!J14="","","Y") -> 
D22: UTF Compliance 3A | F22: Concentration of Investment in Equities/Warrants of a Single Issuer | H22: =IF(UTF3A!I13="","","Y") -> 
D23: UTF Compliance 3B | F23: Concentration of Investment in Debentures of a Single Issuer | H23: =IF(UTF3B!H13="","","Y") -> 
D24: UTF Compliance 3C | F24: Concentration of Investment in Money Market Instruments of a Single Issuer | H24: =IF(UTF3C!H13="","","Y") -> 
D25: UTF Compliance 3D | F25: Concentration of Investment in Collective Investment Scheme of a Single Issuer | H25: =IF(UTF3D!H13="","","Y") -> 
D26: UTF Compliance 4A | F26: Investment in Unlisted Securities | H26: =IF(UTF4A!H14="","","Y") -> 
D27: UTF Compliance 5 | F27: Investments in Permitted Investments of a Money Market Fund | H27: =IF('UTF5'!H14="","","Y") -> 
D28: UTF Compliance 6 | F28: Holding of Permitted Investments for a Capital Protected Fund | H28: =IF('UTF6'!G14="","","Y") -> 
D29: UTF Compliance 7 | F29: Use of Brokers/Dealers | H29: =IF('UTF7'!F13="","","Y") -> Y

Sheet UTF1 (hidden)
J1: UTF COMPLIANCE 1
D2: UTF COMPLIANCE RETURNS
D4: MANAGER'S BOX
A6: =EDATE(EOM,0) -> 2016-03-31
D8: Management Company | G8: =": " &CompanyName -> : BIMB Investment Management Berhad
D9: Name of Fund (Category/Type) | G9: =": " &FundName -> : BIMB I Flexi Fund
D10: Month Ended | G10: =": " & TEXT(EOM, "dd mmm yyyy") -> : 31 Mar 2016
C11: 2007-06-12 | D11: Approved Fund Size (' 000 units) | G11: =": " -> :
D12: Manager's Box ('000 units) | G12: Units in circulation ('000 units) | J12: Units held by Manager over
D13: EPF | E13: Matched Sales | F13: Unit held by Manager | G13: Total Manager's box | H13: Others | I13: Total | J13: Units in circulation (%)

Sheet UTF2A (hidden)
G1: UTF COMPLIANCE 2A
D2: UTF COMPLIANCE RETURNS
D4: =UPPER("Investments in Ordinary Shares of a Single Issuer Top 5") -> INVESTMENTS IN ORDINARY SHARES OF A SINGLE ISSUER TOP 5
A6: =EDATE(EOM,0) -> 2016-03-31
D8: Management Company | E8: : | F8: =CompanyName -> BIMB Investment Management Berhad
D9: Name of Fund (Category/Type) | E9: : | F9: =FundName -> BIMB I Flexi Fund
D10: Month Ended | E10: : | F10: =TEXT(EOM,"dd mmm yyyy") -> 31 Mar 2016
C11: 2007-06-12 | D11: Fund NAV (RM) | E11: : | F11: =InPortfolio!AM2 -> 0
D12: Name of Issuer | F12: Value of Fund's Investments | G12: Value of holding over NAV | J12: qAssetClass | K12: (Multiple Items)
F13: (RM) | G13: (%)
D14: =IF(J16="","",J16) ->  | F14: =IF(K16="","",K16) ->  | G14: =IF(L16="","",L16) ->  | K14: Values
D15: =IF(J17="","",J17) ->  | F15: =IF(K17="","",K17) ->  | G15: =IF(L17="","",L17) ->  | J15: Row Labels | K15: Sum of MarketValueFC | L15: Sum of fPercNAV
D16: =IF(J18="","",J18) ->  | G16: =IF(L18="","",L18) -> 
D17: =IF(J19="","",J19) ->  | G17: =IF(L19="","",L19) -> 
D18: =IF(J20="","",J20) ->  | G18: =IF(L20="","",L20) -> 

Sheet UTF2B (hidden)
J1: UTF COMPLIANCE 2B
D2: UTF COMPLIANCE RETURNS
D4: =UPPER("Investments in Transferable Securities And Money Market Instruments of a Single Issuer") -> INVESTMENTS IN TRANSFERABLE SECURITIES AND MONEY MARKET INSTRUMENTS OF A SINGLE ISSUER
D5: TOP 5
A6: =EDATE(EOM,0) -> 2016-03-31
D8: Management Company | E8: : | F8: =CompanyName -> BIMB Investment Management Berhad
D9: Name of Fund (Category/Type) | E9: : | F9: =FundName -> BIMB I Flexi Fund
D10: Month Ended | E10: : | F10: =TEXT(EOM, "dd mmm yyyy") -> 31 Mar 2016
C11: 2007-06-12 | D11: Fund NAV (RM) | E11: : | F11: =InPortfolio!AM2 -> 0 | M11: qAssetClass | N11: (Multiple Items)
D12: Name of Issuer/ Institution | F12: Class of Security | G12: Type of Investment | H12: Rating | I12: Value of fund's Investments | J12: Value of holding over NAV
I13: (RM) | J13: (%) | R13: Values
D14: =IF(M15="","",M15) ->  | F14: =IF(N15="","",N15) ->  | G14: =IF(O15="","",O15) ->  | H14: =IF(P15="","",IF(TRIM(P15)="N/A","-",P15)) ->  | I14: =IF(R15="","",R15) ->  | J14: =IF(S15="","",S15) ->  | M14: Row Labels | N14: Class | O14: StockTypeDesc | P14: Rating | Q14: StockName | R14: Sum of MarketValueFC | S14: Sum of fPercNAV
D15: =IF(M16="","",M16) ->  | F15: =IF(N16="","",N16) ->  | G15: =IF(O16="","",O16) ->  | H15: =IF(P16="","",IF(TRIM(P16)="N/A","-",P16)) ->  | I15: =IF(R16="","",R16) ->  | J15: =IF(S16="","",S16) -> 
D79: =IF(M80="","",M80) ->  | F79: =IF(N80="","",N80) ->  | G79: =IF(O80="","",O80) ->  | H79: =IF(P80="","",IF(TRIM(P80)="N/A","-",P80)) ->  | I79: =IF(R80="","",R80) ->  | J79: =IF(S80="","",S80) -> 

Sheet UTF2C (hidden)
G1: UTF COMPLIANCE 2C
D2: UTF COMPLIANCE RETURNS
D4: =UPPER("Placements of Deposits with a Single Institution") -> PLACEMENTS OF DEPOSITS WITH A SINGLE INSTITUTION
D5: TOP 5
A6: =EDATE(EOM,0) -> 2016-03-31
D8: Management Company | E8: : | F8: =CompanyName -> BIMB Investment Management Berhad
D9: Name of Fund (Category/Type) | E9: : | F9: =FundName -> BIMB I Flexi Fund
D10: Month Ended | E10: : | F10: =TEXT(EOM,"dd mmm yyyy") -> 31 Mar 2016
C11: 2007-06-12 | D11: Fund NAV (RM) | E11: : | F11: =InPortfolio!AM2 -> 0 | K11: qAssetClass | L11: (Multiple Items)
D12: Name of Institution | F12: Value of Fund's Investments | G12: Value of holding over NAV
F13: (RM) | G13: (%) | L13: Values
D14: =IF(K15="","",K15) ->  | F14: =IF(L15="","",L15) ->  | G14: =IF(M15="","",M15) ->  | K14: Row Labels | L14: Sum of UnitFaceValue | M14: Sum of fPercNAV
D15: =IF(K16="","",K16) ->  | F15: =IF(L16="","",L16) ->  | G15: =IF(M16="","",M16) -> 
D16: =IF(K17="","",K17) ->  | G16: =IF(M17="","",M17) -> 
D17: =IF(K18="","",K18) ->  | G17: =IF(M18="","",M18) -> 
D18: =IF(K19="","",K19) ->  | G18: =IF(M19="","",M19) -> 

Sheet UTF2D (hidden)
G1: UTF COMPLIANCE 2D
D2: UTF COMPLIANCE RETURNS
D4: =UPPER("Investments in OTC Derivative of a Single Counter-Party") -> INVESTMENTS IN OTC DERIVATIVE OF A SINGLE COUNTER-PARTY
D5: TOP 5
A6: =EDATE(EOM,0) -> 2016-03-31
D8: Management Company | E8: : | F8: =CompanyName -> BIMB Investment Management Berhad
D9: Name of Fund (Category/Type) | E9: : | F9: =FundName -> BIMB I Flexi Fund
D10: Month Ended | E10: : | F10: =TEXT(EOM,"dd mmm yyyy") -> 31 Mar 2016
C11: 2007-06-12 | D11: Fund NAV | E11: : | F11: =InPortfolio!AM2 -> 0 | K11: qAssetClass | L11: (blank)
D12: Name of Issuer | E12: Type of Investment | F12: Value of Fund's Investments | G12: Value of holding over NAV
F13: (RM) | G13: (%) | M13: Values
D14: =IF(K15="","",K15) -> (blank) | E14: (blank) | F14: =IF(M15="","",M15) ->  | G14: =IF(N15="","",N15) ->  | K14: Row Labels | L14: StockTypeDesc | M14: Sum of MarketValueFC | N14: Sum of fPercNAV
F15: =IF(M16="","",M16) ->  | G15: =IF(N16="","",N16) ->  | K15: (blank) | L15: (blank)
G16: =IF(N17="","",N17) -> 
G17: =IF(N18="","",N18) -> 
G18: =IF(N19="","",N19) -> 

Sheet InPortfolio (hidden)
A1: Class | B1: qFundCode | C1: qStockCode | D1: UnitFaceValue | E1: MarketValueSC | F1: MarketValueFC | G1: ExchangeRate | H1: MaturityDateCSH | I1: CostFC | J1: CostSC | K1: AccruedInterestFC | L1: AccruedInterestSC | M1: UnrealisedGainsStock | N1: UnrealisedGainsExchg | O1: PriceCurr | P1: FundName | Q1: FundCurrency | R1: MaxTenor | S1: qCompanyID | T1: StockName | U1: StockCurrency | V1: qAssetClass | W1: SectorName | X1: CurrencyName | Y1: Exchange | Z1: IslamicFlag | AA1: IssuerName | AB1: IssuerGrpName | AC1: qStockType | AD1: Board | AE1: qBondType | AF1: BndDesc | AG1: StockTypeDesc | AH1: qManagerCode | AI1: qCountryID | AJ1: FreezeUnit | AK1: FundDesc | AL1: RatingUsed | AM1: NAV | AN1: ExchgName | AO1: qCshType | AP1: CshTypeDesc | AQ1: UTFlag | AR1: qKLSESector | AS1: ValuationMethod | AT1: qRptSequence | AU1: fPercNAV | AV1: PurchaseYTM | AW1: PurchaseDate | AX1: MarketValueDate | AY1: BookValue | AZ1: ValueYTM | BA1: ValGains | BB1: PreAcqSC | BC1: PreAcqFC | BD1: FundGrpName | BE1: LastMarketValue | BF1: Rating | BG1: Term | BH1: Term | BI1: Term | BJ1: Term | BK1: Term | BL1: Term | BM1: Term | BN1: Term | BO1: Term | BP1: Term | BQ1: Term | BR1: Term | BS1: Term | BT1: Term | BU1: Term | BV1: Term | BW1: Term | BX1: Term | BY1: Term | BZ1: Term | CA1: Term | CB1: Term | CC1: Term | CD1: Term | CE1: Term | CF1: Term | CG1: Term | CH1: Term | CI1: Term | CJ1: Term | CK1: Term | CL1: Term | CM1: Term | CN1: Term | CO1: Term | CP1: Term | CQ1: Term | CR1: Term | CS1: Term | CT1: Term | CU1: Term | CV1: Term | CW1: Term | CX1: Term | CY1: Term | CZ1: Term | DA1: Term | DB1: Term | DC1: Term | DD1: Term | DE1: Term | DF1: Term | DG1: Term | DH1: Term | DI1: Term | DJ1: Term | DK1: Term | DL1: Term | DM1: Term | DN1: Term | DO1: Term | DP1: Term | DQ1: Term | DR1: Term

Sheet UTF2E (hidden)
G1: UTF COMPLIANCE 2E
D2: UTF COMPLIANCE RETURNS
D4: =UPPER("Investment in Structured Product of a Single Counter-Party") -> INVESTMENT IN STRUCTURED PRODUCT OF A SINGLE COUNTER-PARTY
D5: TOP 5
A6: =EDATE(EOM,0) -> 2016-03-31
D8: Management Company | E8: : | F8: =CompanyName -> BIMB Investment Management Berhad
D9: Name of Fund (Category/Type) | E9: : | F9: =FundName -> BIMB I Flexi Fund
D10: Month Ended | E10: : | F10: =TEXT(EOM,"dd mmm yyyy") -> 31 Mar 2016
C11: 2007-06-12 | D11: Fund NAV | E11: : | F11: =InPortfolio!AM2 -> 0
D12: Name of Issuer | E12: Rating | F12: Value of Fund's Investments | G12: Value of holding over NAV | K12: qAssetClass | L12: (blank)
F13: (RM) | G13: (%)
D14: =IF(K16="","",K16) ->  | E14: =IF(L16="","",L16) ->  | F14: =IF(M16="","",M16) ->  | G14: =IF(N16="","",N16) ->  | M14: Values
D15: =IF(K17="","",K17) ->  | E15: =IF(L17="","",L17) ->  | F15: =IF(M17="","",M17) ->  | G15: =IF(N17="","",N17) ->  | K15: Row Labels | L15: Rating | M15: Sum of MarketValueFC | N15: Sum of fPercNAV
D19: =IF(K20="","",K20) ->  | F19: =IF(M20="","",M20) -> 

Sheet UTF2F (hidden)
H1: UTF COMPLIANCE 2F
D2: UTF COMPLIANCE RETURNS
D4: =UPPER("Aggregate Investments of a Single Issuer/Institution") -> AGGREGATE INVESTMENTS OF A SINGLE ISSUER/INSTITUTION
D5: TOP 5
A6: =EDATE(EOM,0) -> 2016-03-31
D8: Management Company | E8: : | F8: =CompanyName -> BIMB Investment Management Berhad
D9: Name of Fund (Category/Type) | E9: : | F9: =FundName -> BIMB I Flexi Fund
D10: Month Ended | E10: : | F10: =TEXT(EOM,"dd mmm yyyy") -> 31 Mar 2016
C11: 2007-06-12 | D11: Fund NAV | E11: : | F11: =InPortfolio!AM2 -> 0 | L11: qAssetClass | M11: (Multiple Items)
D12: Name of Issuer | F12: Class of Investment | G12: Value of Fund's Investments | H12: Value of holding over NAV
G13: (RM) | H13: (%) | O13: Values
D14: =IF(L15="","",L15) ->  | F14: =IF(M15="","",M15) ->  | G14: =IF(O15="","",O15) ->  | H14: =IF(P15="","",P15) ->  | L14: Row Labels | M14: Class | N14: StockName | O14: Sum of MarketValueFC | P14: Sum of fPercNAV
D15: =IF(L16="","",L16) ->  | F15: =IF(M16="","",M16) ->  | G15: =IF(O16="","",O16) ->  | H15: =IF(P16="","",P16) -> 
D79: =IF(L80="","",L80) ->  | F79: =IF(M80="","",M80) ->  | G79: =IF(O80="","",O80) ->  | H79: =IF(P80="","",P80) -> 

Sheet UTF2G (hidden)
G1: UTF COMPLIANCE 2G
D2: UTF COMPLIANCE RETURNS
D4: =UPPER("Investments in Units/Shares of a Single Collective Investment Scheme") -> INVESTMENTS IN UNITS/SHARES OF A SINGLE COLLECTIVE INVESTMENT SCHEME
D5: TOP 5
A6: =EDATE(EOM,0) -> 2016-03-31
D8: Management Company | E8: : | F8: =CompanyName -> BIMB Investment Management Berhad
D9: Name of Fund (Category/Type) | E9: : | F9: =FundName -> BIMB I Flexi Fund
D10: Month Ended | E10: : | F10: =TEXT(EOM,"dd mmm yyyy") -> 31 Mar 2016
C11: 2007-06-12 | D11: Fund NAV | E11: : | F11: =InPortfolio!AM2 -> 0 | K11: qAssetClass | L11: (Multiple Items)
D12: Name of Collective Investment Scheme | E12: Type of Investment | F12: Value of Fund's Investments | G12: Value of holding over NAV
F13: (RM) | G13: (%) | M13: Values
D14: =IF(K15="","",K15) ->  | F14: =IF(M15="","",M15) ->  | G14: =IF(N15="","",N15) ->  | K14: Row Labels | L14: StockTypeDesc | M14: Sum of MarketValueFC | N14: Sum of fPercNAV
F15: =IF(M16="","",M16) ->  | G15: =IF(N16="","",N16) -> 
G16: =IF(N17="","",N17) -> 
G17: =IF(N18="","",N18) -> 
G18: =IF(N19="","",N19) -> 

Sheet UTF2H (hidden)
J1: UTF COMPLIANCE 2H
D2: UTF COMPLIANCE RETURNS
D4: =UPPER("Investments in Transferable Securities And Money Market Instruments of a Group of Companies") -> INVESTMENTS IN TRANSFERABLE SECURITIES AND MONEY MARKET INSTRUMENTS OF A GROUP OF COMPANIES
D5: TOP 5
A6: =EDATE(EOM,0) -> 2016-03-31 | N6: qAssetClass | O6: (Multiple Items)
D8: Management Company | E8: : | F8: =CompanyName -> BIMB Investment Management Berhad | R8: Values
D9: Name of Fund (Category/Type) | E9: : | F9: =FundName -> BIMB I Flexi Fund | N9: Row Labels | O9: IssuerName | P9: Class | Q9: StockTypeDesc | R9: Sum of MarketValueFC | S9: Sum of fPercNAV | T9: Count of IssuerGrpName
D10: Month Ended | E10: : | F10: =TEXT(EOM,"dd mmm yyyy") -> 31 Mar 2016
C11: 2007-06-12 | D11: Fund NAV (RM) | E11: : | F11: =InPortfolio!AM2 -> 0
D12: Name of Group | F12: Name of Issuer within the Group | G12: Class of Security | H12: Type of Investment | I12: Value of Fund's Investments | J12: Value of holding over NAV
I13: (RM) | J13: (%)
D14: =IF(N10="","",N10) ->  | F14: =IF(O10="","",O10) ->  | G14: =IF(P10="","",P10) ->  | H14: =IF(Q10="","",Q10) ->  | I14: =IF(R10="","",R10) ->  | J14: =IF(S10="","",S10) -> 
D15: =IF(N11="","",N11) ->  | F15: =IF(O11="","",O11) ->  | G15: =IF(P11="","",P11) ->  | H15: =IF(Q11="","",Q11) ->  | I15: =IF(R11="","",R11) ->  | J15: =IF(S11="","",S11) -> 
D79: =IF(N75="","",N75) ->  | F79: =IF(O75="","",O75) ->  | G79: =IF(P75="","",P75) ->  | H79: =IF(Q75="","",Q75) ->  | I79: =IF(R75="","",R75) ->  | J79: =IF(S75="","",S75) -> 

Sheet UTF3A (hidden)
I1: UTF COMPLIANCE 3A
D2: UTF COMPLIANCE RETURNS
N3: qAssetClass | O3: (Multiple Items)
D4: =UPPER("Concentration of Investment in Equities/Warrants of a Single Issuer") -> CONCENTRATION OF INVESTMENT IN EQUITIES/WARRANTS OF A SINGLE ISSUER
D5: TOP 5 | Q5: Values
A6: =EDATE(EOM,0) -> 2016-03-31 | N6: Row Labels | O6: Class | P6: StockTypeDesc | Q6: Sum of IssuedSize | R6: Sum of UnitFaceValue | S6: Sum of PercHolding
D8: Management Company | F8: =": " & CompanyName -> : BIMB Investment Management Berhad
D9: Name of Fund (Category/Type) | F9: =": " & FundName -> : BIMB I Flexi Fund
D10: Month Ended | F10: =": " & TEXT(EOM,"dd mmm yyyy") -> : 31 Mar 2016
D11: Name of Issuer | E11: Class of Investment | F11: Type of Investment | G11: Securities in Issue | H11: Securities held by fund | I11: Holding of security over security in issue
G12: (units) | H12: (units) | I12: (%)
D13: =IF(N7="","",N7) ->  | E13: =IF(O7="","",O7) -> 
D14: =IF(N8="","",N8) ->  | E14: =IF(O8="","",O8) ->  | F14: =IF(P8="","",P8) ->  | G14: =IF(Q8="","",Q8) ->  | H14: =IF(R8="","",R8) ->  | I14: =IF(S8="","",S8) -> 

Sheet UTF3B (hidden)
H1: UTF COMPLIANCE 3B
D2: UTF COMPLIANCE RETURNS
D4: =UPPER("Concentration of Investment in Debentures of a Single Issuer") -> CONCENTRATION OF INVESTMENT IN DEBENTURES OF A SINGLE ISSUER
D5: TOP 5
A6: =EDATE(EOM,0) -> 2016-03-31
D8: Management Company | E8: =": " & CompanyName -> : BIMB Investment Management Berhad
D9: Name of Fund (Category/Type) | E9: =": " & FundName -> : BIMB I Flexi Fund | L9: qAssetClass | M9: (Multiple Items)
D10: Month Ended | E10: =": " & TEXT(EOM,"dd mmm yyyy") -> : 31 Mar 2016 | L10: qBondType | M10: (Multiple Items)
D11: Name of Issuer | E11: Type of Investment | F11: Securities in Issue | G11: Securities held by fund | H11: Holding of security over security in issue
F12: (units) | G12: (units) | H12: (%) | O12: Values
D13: =IF(L14="","",L14) ->  | E13: =IF(M14="","",M14) ->  | L13: Row Labels | M13: StockTypeDesc | N13: IssuedSize | O13: Sum of UnitFaceValue | P13: Sum of PercHolding
D14: =IF(L15="","",L15) -> 
D15: =IF(L16="","",L16) -> 
D16: =IF(L17="","",L17) -> 
D17: =IF(L18="","",L18) -> 

Sheet UTF3C (hidden)
H1: UTF COMPLIANCE 3C
D2: UTF COMPLIANCE RETURNS
D4: =UPPER("Concentration of Investment in Money Market Instruments of a Single Issuer") -> CONCENTRATION OF INVESTMENT IN MONEY MARKET INSTRUMENTS OF A SINGLE ISSUER
D5: TOP 5
A6: =EDATE(EOM,0) -> 2016-03-31
D8: Management Company | E8: =": " & CompanyName -> : BIMB Investment Management Berhad
D9: Name of Fund (Category/Type) | E9: =": " & FundName -> : BIMB I Flexi Fund | K9: qAssetClass | L9: (Multiple Items)
D10: Month Ended | E10: =": " & TEXT(EOM,"dd mmm yyyy") -> : 31 Mar 2016 | K10: qBondType | L10: (Multiple Items)
D11: Name of Institution | E11: Type of Investment | F11: Instruments in Issue | G11: Instruments held by fund | H11: Holding of security over security in issue
F12: (RM) | G12: (RM) | H12: (%) | N12: Values
D13: =IF(K14="","",K14) ->  | E13: =IF(L14="","",L14) ->  | K13: Row Labels | L13: StockTypeDesc | M13: IssuedSize | N13: Sum of UnitFaceValue | O13: Sum of PercHolding
D14: =IF(K15="","",K15) -> 
D15: =IF(K16="","",K16) -> 
D16: =IF(K17="","",K17) -> 
D17: =IF(K18="","",K18) -> 

Sheet UTF3D (hidden)
H1: UTF COMPLIANCE 3D
D2: UTF COMPLIANCE RETURNS
D4: =UPPER("Concentration of Investment in Collective Investment Scheme of a Single Issuer") -> CONCENTRATION OF INVESTMENT IN COLLECTIVE INVESTMENT SCHEME OF A SINGLE ISSUER
D5: TOP 5
A6: =EDATE(EOM,0) -> 2016-03-31
D8: Management Company | E8: =": " & CompanyName -> : BIMB Investment Management Berhad | K8: qAssetClass | L8: (Multiple Items)
D9: Name of Fund (Category/Type) | E9: =": " & FundName -> : BIMB I Flexi Fund
D10: Month Ended | E10: =": " & TEXT(EOM,"dd mmm yyyy") -> : 31 Mar 2016 | N10: Values
D11: Name of Collective Investment Scheme | E11: Type of Investment | F11: Unit/Shares in Issue | G11: Unit/Shares held by fund | H11: Holding of security over security in issue | K11: Row Labels | L11: StockTypeDesc | M11: IssuedSize | N11: Sum of UnitFaceValue | O11: Sum of PercHolding
F12: (units) | G12: (units) | H12: (%)
D13: =IF(K12="","",K12) ->  | E13: =IF(L12="","",L12) -> 
D14: =IF(K13="","",K13) -> 
D15: =IF(K14="","",K14) -> 
D16: =IF(K15="","",K15) -> 
D17: =IF(K16="","",K16) -> 

Sheet UTF4A (hidden)
H1: UTF COMPLIANCE 4A
D2: UTF COMPLIANCE RETURNS
D4: =UPPER("Investment in Unlisted Securities") -> INVESTMENT IN UNLISTED SECURITIES
A6: =EDATE(EOM,0) -> 2016-03-31
D8: Management Company | F8: : | G8: =CompanyName -> BIMB Investment Management Berhad
D9: Name of Fund (Category/Type) | F9: : | G9: =FundName -> BIMB I Flexi Fund
D10: Month Ended | F10: : | G10: =TEXT(EOM,"dd mmm yyyy") -> 31 Mar 2016
C11: 2007-06-12 | D11: Fund NAV (RM) | F11: : | G11: =InPortfolio!AM2 -> 0
D12: Name of Issuer | E12: Type of Investment | G12: Value of Fund's Investments | H12: Value of holding over NAV
G13: (RM '000) | H13: (%)

Sheet UTF5 (hidden)
H1: UTF COMPLIANCE 5
D2: UTF COMPLIANCE RETURNS
D4: =UPPER("Investments in Permitted Investments of a Money Market Fund") -> INVESTMENTS IN PERMITTED INVESTMENTS OF A MONEY MARKET FUND
D5: TOP 10
A6: =EDATE(EOM,0) -> 2016-03-31
D8: Management Company | E8: : | F8: =CompanyName -> BIMB Investment Management Berhad
D9: Name of Fund (Category/Type) | E9: : | F9: =FundName -> BIMB I Flexi Fund
D10: Month Ended | E10: : | F10: =TEXT(EOM,"dd mmm yyyy") -> 31 Mar 2016
C11: 2007-06-12 | D11: Fund NAV (RM) | E11: : | F11: =InPortfolio!AM2 -> 0
D12: Name of Issuer | E12: Class of Investment | F12: Type of Investment | G12: Value of Fund's Investments
G13: Remaining maturity period of not more than 365 days (RM '000) | H13: Remaining maturity period of more than 365 days but fewer than 732 days (RM'000)

Sheet UTF6 (hidden)
G1: UTF COMPLIANCE 6
D2: UTF COMPLIANCE RETURNS
D4: =UPPER("Holding of Permitted Investments for a Capital Protected Fund") -> HOLDING OF PERMITTED INVESTMENTS FOR A CAPITAL PROTECTED FUND
A6: =EDATE(EOM,0) -> 2016-03-31
D8: Management Company | E8: : | F8: =CompanyName -> BIMB Investment Management Berhad
D9: Name of Fund (Category/Type) | E9: : | F9: =FundName -> BIMB I Flexi Fund
D10: Month Ended | E10: : | F10: =TEXT(EOM,"dd mmm yyyy") -> 31 Mar 2016
C11: 2007-06-12 | D11: Fund NAV | E11: : | F11: =InPortfolio!AM2 -> 0
D12: Name of Issuer | E12: Class of Security | F12: Type | G12: Value of Fund's Investments
G13: (RM '000)

Sheet UTF7 (hidden)
F1: UTF COMPLIANCE 7
D2: UTF COMPLIANCE RETURNS
D4: =UPPER("Use of Brokers/Dealers") -> USE OF BROKERS/DEALERS
A6: =EDATE(EOM,0) -> 2016-03-31
D8: Management Company | E8: =": " & CompanyName -> : BIMB Investment Management Berhad
D9: Name of Fund (Category/Type) | E9: =": " & FundName -> : BIMB I Flexi Fund
D10: Financial Year Ended | E10: =": " & TEXT(EOM,"dd mmm yyyy") -> : 31 Mar 2016
D11: Top Ten Brokers/ Dealer | E11: Transaction Value for the Year | F11: % Fund's Dealings
E12: (RM '000) | I12: Row Labels | J12: Sum of SCNetProceed | K12: %
D13: =IF(I13="","",I13) -> RHB Investment Bank Berhad | E13: =IF(J13="","",J13/1000) -> 3125.41703 | F13: =IF(E13=0,"",(E13/E23)*100) -> 17.82060262 | I13: RHB Investment Bank Berhad | J13: 3125417.03 | K13: =IF(J23=0,"",(J13/J23)*100) -> 
D14: =IF(I14="","",I14) -> BIMB Securities Sdn Bhd | E14: =IF(J14="","",J14/1000) -> 2875.19512 | F14: =IF(E14=0,"",(E14/E23)*100) -> 16.39387935 | I14: BIMB Securities Sdn Bhd | J14: 2875195.12 | K14: =IF(J23=0,"",(J14/J23)*100) -> 
D15: TA Securities Holdings Berhad | E15: 2499.1544 | F15: =IF(E15=0,"",(E15/E23)*100) -> 14.24975836 | I15: TA Securities Holdings Berhad | J15: 2499154.4 | K15: =IF(J23=0,"",(J15/J23)*100) -> 
D16: Hong Leong Investment Bank Berhad | E16: 1709.94815 | F16: =IF(E16=0,"",(E16/E23)*100) -> 9.749836965 | I16: Hong Leong Investment Bank Berhad | J16: 1709948.15 | K16: =IF(J23=0,"",(J16/J23)*100) -> 
D17: Public Investment Bank Berhad | E17: 1357.55676 | F17: =IF(E17=0,"",(E17/E23)*100) -> 7.740560485 | I17: Public Investment Bank Berhad | J17: 1357556.76 | K17: =IF(J23=0,"",(J17/J23)*100) -> 
D18: MIDF Amanah Investment Bank Berhad | E18: 1357.39096 | F18: =IF(E18=0,"",(E18/E23)*100) -> 7.739615121 | I18: MIDF Amanah Investment Bank Berhad | J18: 1357390.96 | K18: =IF(J23=0,"",(J18/J23)*100) -> 
D19: Maybank Investment Bank Berhad | E19: 1259.55135 | F19: =IF(E19=0,"",(E19/E23)*100) -> 7.181750108 | I19: Maybank Investment Bank Berhad | J19: 1259551.35 | K19: =IF(J23=0,"",(J19/J23)*100) -> 
D20: CIMB Investment Bank Berhad | E20: 1191.29805 | F20: =IF(E20=0,"",(E20/E23)*100) -> 6.792581263 | I20: CIMB Investment Bank Berhad | J20: 1191298.05 | K20: =IF(J23=0,"",(J20/J23)*100) -> 
D21: Kenanga Investment Bank Berhad | E21: 1139.94407 | F21: =IF(E21=0,"",(E21/E23)*100) -> 6.4997695 | I21: Kenanga Investment Bank Berhad | J21: 1139944.07 | K21: =IF(J23=0,"",(J21/J23)*100) -> 
D22: HONG LEONG ISLAMIC BANK BERHAD | E22: 1022.76712 | F22: =IF(E22=0,"",(E22/E23)*100) -> 5.831646224 | I22: HONG LEONG ISLAMIC BANK BERHAD | J22: 1022767.12 | K22: =IF(J23=0,"",(J22/J23)*100) -> 
D23: TOTAL | E23: =IF(SUM(E13:E22)=0,"",SUM(E13:E22)) -> 17538.22301 | F23: =SUM(F13:F22) -> 100 | K23: =IF(J23=0,"",(J23/J23)*100) -> 

Sheet InPort (hidden)
A1: qAssetClass | B1: Class | C1: MarketValueFC | D1: IssuerName | E1: IssuerGrpName | F1: StockTypeDesc | G1: fPercNAV | H1: fPercNAV | I1: fPercNAV

Sheet InPos (hidden)
A1: qAssetClass | B1: qStockCode | C1: StockDesc | D1: UnitFaceValue | E1: CostSC | F1: CostFC | G1: MarketValueSC | H1: MarketValueFC | I1: SG1 | J1: MaturityDate | K1: ExchangeCountry | L1: IssuerName | M1: IssuerGrpName | N1: VetoValues | O1: IssuedSize | P1: Coupon | Q1: MarketValue | R1: RatingUsed | S1: Description | T1: StockTypeDesc | U1: StockName | V1: StockCountry | W1: List | X1: qBondType | Y1: Class | Z1: PercHolding | AA1: =IF(LEN(L1)>5,L1& " - (" & B1& ") ","") -> IssuerName - (qStockCode) | AB1: =L1&I1 -> IssuerNameSG1 | AC1: =M1&L1&B1 -> IssuerGrpNameIssuerNameqStockCode | AD1: =IF(AND(COUNTIF($M:$M,M1)>0,A1<>"CSH",M1<>"N/A"),M1,"") -> IssuerGrpName | AE1: =A1&L1 -> qAssetClassIssuerName | AF1: =B1&M1 -> qStockCodeIssuerGrpName | AG1: =C1&N1 -> StockDescVetoValues | AH1: UnitFaceValueIssuedSize | AI1: CostSCCoupon | AJ1: CostFCMarketValue | AK1: MarketValueSCRatingUsed | AL1: MarketValueFCDescription | AM1: SG1StockTypeDesc | AN1: MaturityDateStockName | AO1: ExchangeCountryStockCountry | AP1: IssuerNameList | AQ1: IssuerGrpNameqBondType | AR1: VetoValuesClass | AS1: IssuedSizePercHolding | AT1: CouponIssuerName - (qStockCode) | AU1: MarketValueIssuerNameSG1 | AV1: RatingUsedIssuerGrpNameIssuerNameqStockCode | AW1: DescriptionIssuerGrpName | AX1: StockTypeDescqAssetClassIssuerName | AY1: StockNameqStockCodeIssuerGrpName | AZ1: StockCountryStockDescVetoValues | BA1: ListUnitFaceValueIssuedSize | BB1: qBondTypeCostSCCoupon | BC1: ClassCostFCMarketValue | BD1: PercHoldingMarketValueSCRatingUsed | BE1: IssuerName - (qStockCode) MarketValueFCDescription | BF1: IssuerNameSG1SG1StockTypeDesc | BG1: IssuerGrpNameIssuerNameqStockCodeMaturityDateStockName | BH1: IssuerGrpNameExchangeCountryStockCountry | BI1: qAssetClassIssuerNameIssuerNameList | BJ1: qStockCodeIssuerGrpNameIssuerGrpNameqBondType | BK1: StockDescVetoValuesVetoValuesClass | BL1: UnitFaceValueIssuedSizeIssuedSizePercHolding | BM1: CostSCCouponCouponIssuerName - (qStockCode) | BN1: CostFCMarketValueMarketValueIssuerNameSG1 | BO1: MarketValueSCRatingUsedRatingUsedIssuerGrpNameIssuerNameqStockCode | BP1: MarketValueFCDescriptionDescriptionIssuerGrpName | BQ1: SG1StockTypeDescStockTypeDescqAssetClassIssuerName | BR1: MaturityDateStockNameStockNameqStockCodeIssuerGrpName | BS1: ExchangeCountryStockCountryStockCountryStockDescVetoValues | BT1: IssuerNameListListUnitFaceValueIssuedSize | BU1: IssuerGrpNameqBondTypeqBondTypeCostSCCoupon | BV1: VetoValuesClassClassCostFCMarketValue | BW1: IssuedSizePercHoldingPercHoldingMarketValueSCRatingUsed | BX1: CouponIssuerName - (qStockCode) IssuerName - (qStockCode) MarketValueFCDescription | BY1: MarketValueIssuerNameSG1IssuerNameSG1SG1StockTypeDesc | BZ1: RatingUsedIssuerGrpNameIssuerNameqStockCodeIssuerGrpNameIssuerNameqStockCodeMaturityDateStockName | CA1: DescriptionIssuerGrpNameIssuerGrpNameExchangeCountryStockCountry | CB1: StockTypeDescqAssetClassIssuerNameqAssetClassIssuerNameIssuerNameList | CC1: StockNameqStockCodeIssuerGrpNameqStockCodeIssuerGrpNameIssuerGrpNameqBondType | CD1: StockCountryStockDescVetoValuesStockDescVetoValuesVetoValuesClass
A2: CSH | B2: RDI*MYR*HLISLA | C2: Not Applicable | D2: 10052449.87 | E2: 10052449.87 | F2: 10052449.87 | G2: 10052449.87 | H2: 10052449.87 | I2: N/A | J2: 42306 | K2: Malaysia | L2: N/A | M2: N/A | O2: 0 | Q2: 10052 | S2: Not Applicable | U2: HONG LEONG ISLAMIC BANK BERHAD | V2: Malaysia | W2: Unlisted | Y2: Placements of Deposits | Z2: 0

Sheet InTran (hidden)
A1: CPName | B1: qTrnCode | C1: SCNetProceed | D1: SCNetProceed | E1: SCNetProceed | F1: SCNetProceed | G1: SCNetProceed | H1: SCNetProceed | I1: SCNetProceed | J1: SCNetProceed | K1: SCNetProceed | L1: SCNetProceed | M1: SCNetProceed | N1: SCNetProceed | O1: SCNetProceed | P1: SCNetProceed | Q1: SCNetProceed | R1: SCNetProceed | S1: SCNetProceed | T1: SCNetProceed | U1: SCNetProceed | V1: SCNetProceed | W1: SCNetProceed | X1: SCNetProceed | Y1: SCNetProceed | Z1: SCNetProceed | AA1: SCNetProceed | AB1: SCNetProceed | AC1: SCNetProceed | AD1: SCNetProceed | AE1: SCNetProceed | AF1: SCNetProceed | AG1: SCNetProceed | AH1: SCNetProceed | AI1: SCNetProceed | AJ1: SCNetProceed | AK1: SCNetProceed | AL1: SCNetProceed | AM1: SCNetProceed | AN1: SCNetProceed | AO1: SCNetProceed | AP1: SCNetProceed | AQ1: SCNetProceed | AR1: SCNetProceed | AS1: SCNetProceed
A2: AmInvestment Bank Berhad | B2: SP | C2: 50185.15
A3: AmInvestment Bank Berhad | B3: SP | C3: 76482.17
A4: AmInvestment Bank Berhad | B4: SP | C4: 40429.89
A5: AmInvestment Bank Berhad | B5: SP | C5: 39144.42
A6: AmInvestment Bank Berhad | B6: SP | C6: 45795.93
A7: AmInvestment Bank Berhad | B7: SP | C7: 18681.32
A8: AmInvestment Bank Berhad | B8: SP | C8: 54558.93
A9: AmInvestment Bank Berhad | B9: SS | C9: 69048.65
A10: AmInvestment Bank Berhad | B10: SS | C10: 166711.19
A11: AmInvestment Bank Berhad | B11: SS | C11: 86217.08
A12: AmInvestment Bank Berhad | B12: SS | C12: 81253.05
A13: AmInvestment Bank Berhad | B13: SS | C13: 75191.29
A14: AmInvestment Bank Berhad | B14: SS | C14: 156322.29
A15: BIMB Securities Sdn Bhd | B15: SP | C15: 115902.94
A16: BIMB Securities Sdn Bhd | B16: SP | C16: 293441.18
A17: BIMB Securities Sdn Bhd | B17: SP | C17: 77161.8
A18: BIMB Securities Sdn Bhd | B18: SP | C18: 173243.57
A19: BIMB Securities Sdn Bhd | B19: SP | C19: 79270.48
A20: BIMB Securities Sdn Bhd | B20: SP | C20: 36640.69
A21: BIMB Securities Sdn Bhd | B21: SP | C21: 80547.91
A22: BIMB Securities Sdn Bhd | B22: SP | C22: 195473.42
A23: BIMB Securities Sdn Bhd | B23: SP | C23: 82363.81
A24: BIMB Securities Sdn Bhd | B24: SP | C24: 141773.55
A25: BIMB Securities Sdn Bhd | B25: SP | C25: 31439.37
A26: BIMB Securities Sdn Bhd | B26: SP | C26: 156999.82
A27: BIMB Securities Sdn Bhd | B27: SS | C27: 82572.97
A28: BIMB Securities Sdn Bhd | B28: SS | C28: 46830.93
A29: BIMB Securities Sdn Bhd | B29: SS | C29: 35033.45
A30: BIMB Securities Sdn Bhd | B30: SS | C30: 149990.87
A31: BIMB Securities Sdn Bhd | B31: SS | C31: 176792.35
A32: BIMB Securities Sdn Bhd | B32: SS | C32: 118775.35
A33: BIMB Securities Sdn Bhd | B33: SS | C33: 114025.14
A34: BIMB Securities Sdn Bhd | B34: SS | C34: 118072.66
A35: BIMB Securities Sdn Bhd | B35: SS | C35: 71352.81
A36: BIMB Securities Sdn Bhd | B36: SS | C36: 47747.46
A37: BIMB Securities Sdn Bhd | B37: SS | C37: 275685.04
A38: BIMB Securities Sdn Bhd | B38: SS | C38: 92803.2
A39: BIMB Securities Sdn Bhd | B39: SS | C39: 81254.35
A40: CIMB Investment Bank Berhad | B40: SP | C40: 37774.41
A41: CIMB Investment Bank Berhad | B41: SP | C41: 88315.84
A42: CIMB Investment Bank Berhad | B42: SP | C42: 21929.06
A43: CIMB Investment Bank Berhad | B43: SP | C43: 50514.28
A44: CIMB Investment Bank Berhad | B44: SP | C44: 37036.74
A45: CIMB Investment Bank Berhad | B45: SP | C45: 83220.72
A46: CIMB Investment Bank Berhad | B46: SP | C46: 35947.61
A47: CIMB Investment Bank Berhad | B47: SP | C47: 23382.98
A48: CIMB Investment Bank Berhad | B48: SP | C48: 12834.47
A49: CIMB Investment Bank Berhad | B49: SP | C49: 132408.58
A50: CIMB Investment Bank Berhad | B50: SP | C50: 44245.75
A51: CIMB Investment Bank Berhad | B51: SP | C51: 25865.36
A52: CIMB Investment Bank Berhad | B52: SS | C52: 117606.91
A53: CIMB Investment Bank Berhad | B53: SS | C53: 60043.58
A54: CIMB Investment Bank Berhad | B54: SS | C54: 79175.98
A55: CIMB Investment Bank Berhad | B55: SS | C55: 82334.21
A56: CIMB Investment Bank Berhad | B56: SS | C56: 69973.3
A57: CIMB Investment Bank Berhad | B57: SS | C57: 106514.02
A58: CIMB Investment Bank Berhad | B58: SS | C58: 82174.25
A59: Hong Leong Investment Bank Berhad | B59: SP | C59: 67750.46
A60: Hong Leong Investment Bank Berhad | B60: SP | C60: 47459.01
A61: Hong Leong Investment Bank Berhad | B61: SP | C61: 42464.56
A62: Hong Leong Investment Bank Berhad | B62: SP | C62: 41395.79
A63: Hong Leong Investment Bank Berhad | B63: SP | C63: 68548
A64: Hong Leong Investment Bank Berhad | B64: SP | C64: 125822.85
A65: Hong Leong Investment Bank Berhad | B65: SP | C65: 220996.21
A66: Hong Leong Investment Bank Berhad | B66: SP | C66: 51731.12
A67: Hong Leong Investment Bank Berhad | B67: SP | C67: 123488.17
A68: Hong Leong Investment Bank Berhad | B68: SP | C68: 54937.76
A69: Hong Leong Investment Bank Berhad | B69: SS | C69: 47433.1
A70: Hong Leong Investment Bank Berhad | B70: SS | C70: 102118.14
A71: Hong Leong Investment Bank Berhad | B71: SS | C71: 137984.79
A72: Hong Leong Investment Bank Berhad | B72: SS | C72: 104573.29
A73: Hong Leong Investment Bank Berhad | B73: SS | C73: 80756.5
A74: Hong Leong Investment Bank Berhad | B74: SS | C74: 92210.81
A75: Hong Leong Investment Bank Berhad | B75: SS | C75: 139590.27
A76: Hong Leong Investment Bank Berhad | B76: SS | C76: 79055.11
A77: Hong Leong Investment Bank Berhad | B77: SS | C77: 73566.4
A78: Hong Leong Investment Bank Berhad | B78: SS | C78: 8065.81
A79: HONG LEONG ISLAMIC BANK BERHAD | B79: BS | C79: 1022767.12
A80: Kenanga Investment Bank Berhad | B80: SP | C80: 78403.15
A81: Kenanga Investment Bank Berhad | B81: SP | C81: 18004.09
A82: Kenanga Investment Bank Berhad | B82: SP | C82: 19701.45
A83: Kenanga Investment Bank Berhad | B83: SP | C83: 81628.83
A84: Kenanga Investment Bank Berhad | B84: SP | C84: 89191.6
A85: Kenanga Investment Bank Berhad | B85: SP | C85: 41759.67
A86: Kenanga Investment Bank Berhad | B86: SS | C86: 78109.09
A87: Kenanga Investment Bank Berhad | B87: SS | C87: 53480.89
A88: Kenanga Investment Bank Berhad | B88: SS | C88: 162046.55
A89: Kenanga Investment Bank Berhad | B89: SS | C89: 101984.71
A90: Kenanga Investment Bank Berhad | B90: SS | C90: 233242.89
A91: Kenanga Investment Bank Berhad | B91: SS | C91: 103683.69
A92: Kenanga Investment Bank Berhad | B92: SS | C92: 78707.46
A93: Macquarie Capital Securities (Malaysia) Sdn Bhd | B93: SP | C93: 41123.36
A94: Macquarie Capital Securities (Malaysia) Sdn Bhd | B94: SP | C94: 75298.79
A95: Macquarie Capital Securities (Malaysia) Sdn Bhd | B95: SP | C95: 24637.95
A96: Macquarie Capital Securities (Malaysia) Sdn Bhd | B96: SP | C96: 35312.1
A97: Macquarie Capital Securities (Malaysia) Sdn Bhd | B97: SP | C97: 43034.1
A98: Macquarie Capital Securities (Malaysia) Sdn Bhd | B98: SP | C98: 58693.66
A99: Macquarie Capital Securities (Malaysia) Sdn Bhd | B99: SS | C99: 56688.41
A100: Macquarie Capital Securities (Malaysia) Sdn Bhd | B100: SS | C100: 122071.81
A101: Maybank Investment Bank Berhad | B101: SP | C101: 121764.92
A102: Maybank Investment Bank Berhad | B102: SP | C102: 78392.12
A103: Maybank Investment Bank Berhad | B103: SP | C103: 72934.42
A104: Maybank Investment Bank Berhad | B104: SP | C104: 44101.77
A105: Maybank Investment Bank Berhad | B105: SP | C105: 82408.13
A106: Maybank Investment Bank Berhad | B106: SP | C106: 41353.36
A107: Maybank Investment Bank Berhad | B107: SP | C107: 78005.07
A108: Maybank Investment Bank Berhad | B108: SP | C108: 38643.07
A109: Maybank Investment Bank Berhad | B109: SP | C109: 66184.25
A110: Maybank Investment Bank Berhad | B110: SP | C110: 76482.97
A111: Maybank Investment Bank Berhad | B111: SP | C111: 39024.1
A112: Maybank Investment Bank Berhad | B112: SS | C112: 109776.66
A113: Maybank Investment Bank Berhad | B113: SS | C113: 122045.87
A114: Maybank Investment Bank Berhad | B114: SS | C114: 39052.44
A115: Maybank Investment Bank Berhad | B115: SS | C115: 166928.7
A116: Maybank Investment Bank Berhad | B116: SS | C116: 82453.5
A117: MIDF Amanah Investment Bank Berhad | B117: SP | C117: 44301.12
A118: MIDF Amanah Investment Bank Berhad | B118: SP | C118: 148453.8
A119: MIDF Amanah Investment Bank Berhad | B119: SP | C119: 11160.14
A120: MIDF Amanah Investment Bank Berhad | B120: SP | C120: 18022.03
A121: MIDF Amanah Investment Bank Berhad | B121: SP | C121: 116812.39
A122: MIDF Amanah Investment Bank Berhad | B122: SS | C122: 161734.19
A123: MIDF Amanah Investment Bank Berhad | B123: SS | C123: 116297.48
A124: MIDF Amanah Investment Bank Berhad | B124: SS | C124: 87856.64
A125: MIDF Amanah Investment Bank Berhad | B125: SS | C125: 84544.82
A126: MIDF Amanah Investment Bank Berhad | B126: SS | C126: 238307.15
A127: MIDF Amanah Investment Bank Berhad | B127: SS | C127: 132167.37
A128: MIDF Amanah Investment Bank Berhad | B128: SS | C128: 197733.83
A129: Public Investment Bank Berhad | B129: SP | C129: 39656.8
A130: Public Investment Bank Berhad | B130: SP | C130: 40299.53
A131: Public Investment Bank Berhad | B131: SP | C131: 85054.07
A132: Public Investment Bank Berhad | B132: SP | C132: 57010.53
A133: Public Investment Bank Berhad | B133: SP | C133: 36585.53
A134: Public Investment Bank Berhad | B134: SP | C134: 20645.21
A135: Public Investment Bank Berhad | B135: SP | C135: 71454.43
A136: Public Investment Bank Berhad | B136: SP | C136: 100027.38
A137: Public Investment Bank Berhad | B137: SP | C137: 150804.61
A138: Public Investment Bank Berhad | B138: SP | C138: 110156.67
A139: Public Investment Bank Berhad | B139: SP | C139: 42637.83
A140: Public Investment Bank Berhad | B140: SS | C140: 274446
A141: Public Investment Bank Berhad | B141: SS | C141: 110040.84
A142: Public Investment Bank Berhad | B142: SS | C142: 59031.63
A143: Public Investment Bank Berhad | B143: SS | C143: 78009.35
A144: Public Investment Bank Berhad | B144: SS | C144: 81696.35
A145: RHB Investment Bank Berhad | B145: SP | C145: 167991.82
A146: RHB Investment Bank Berhad | B146: SP | C146: 70482.93
A147: RHB Investment Bank Berhad | B147: SP | C147: 76984.32
A148: RHB Investment Bank Berhad | B148: SP | C148: 38642.36
A149: RHB Investment Bank Berhad | B149: SP | C149: 38416.37
A150: RHB Investment Bank Berhad | B150: SP | C150: 99363.6
A151: RHB Investment Bank Berhad | B151: SP | C151: 32724.34
A152: RHB Investment Bank Berhad | B152: SP | C152: 84015.27
A153: RHB Investment Bank Berhad | B153: SP | C153: 26619.59
A154: RHB Investment Bank Berhad | B154: SP | C154: 38793.28
A155: RHB Investment Bank Berhad | B155: SP | C155: 8913.82
A156: RHB Investment Bank Berhad | B156: SP | C156: 70104.2
A157: RHB Investment Bank Berhad | B157: SP | C157: 62743.98
A158: RHB Investment Bank Berhad | B158: SP | C158: 64227.37
A159: RHB Investment Bank Berhad | B159: SP | C159: 28067.04
A160: RHB Investment Bank Berhad | B160: SP | C160: 96113.03
A161: RHB Investment Bank Berhad | B161: SP | C161: 103453.53
A162: RHB Investment Bank Berhad | B162: SP | C162: 180042.67
A163: RHB Investment Bank Berhad | B163: SP | C163: 14502
A164: RHB Investment Bank Berhad | B164: SS | C164: 60750.67
A165: RHB Investment Bank Berhad | B165: SS | C165: 114506.28
A166: RHB Investment Bank Berhad | B166: SS | C166: 119051.01
A167: RHB Investment Bank Berhad | B167: SS | C167: 40050.34
A168: RHB Investment Bank Berhad | B168: SS | C168: 280838.3
A169: RHB Investment Bank Berhad | B169: SS | C169: 393803.42
A170: RHB Investment Bank Berhad | B170: SS | C170: 70384.78
A171: RHB Investment Bank Berhad | B171: SS | C171: 168426.6
A172: RHB Investment Bank Berhad | B172: SS | C172: 46849.29
A173: RHB Investment Bank Berhad | B173: SS | C173: 241704.35
A174: RHB Investment Bank Berhad | B174: SS | C174: 44655.24
A175: RHB Investment Bank Berhad | B175: SS | C175: 30918.95
A176: RHB Investment Bank Berhad | B176: SS | C176: 131473.79
A177: RHB Investment Bank Berhad | B177: SS | C177: 79802.49
A178: TA Securities Holdings Berhad | B178: SP | C178: 67735.42
A179: TA Securities Holdings Berhad | B179: SP | C179: 79995.84
A180: TA Securities Holdings Berhad | B180: SP | C180: 66074.45
A181: TA Securities Holdings Berhad | B181: SP | C181: 28452.83
A182: TA Securities Holdings Berhad | B182: SP | C182: 86660.39
A183: TA Securities Holdings Berhad | B183: SP | C183: 246757.35
A184: TA Securities Holdings Berhad | B184: SP | C184: 254401.54
A185: TA Securities Holdings Berhad | B185: SP | C185: 38171.39
A186: TA Securities Holdings Berhad | B186: SP | C186: 41595.42
A187: TA Securities Holdings Berhad | B187: SP | C187: 42221.51
A188: TA Securities Holdings Berhad | B188: SP | C188: 105343.1
A189: TA Securities Holdings Berhad | B189: SP | C189: 34447.77
A190: TA Securities Holdings Berhad | B190: SP | C190: 105995.46
A191: TA Securities Holdings Berhad | B191: SP | C191: 79285.02
A192: TA Securities Holdings Berhad | B192: SP | C192: 132394.91
A193: TA Securities Holdings Berhad | B193: SS | C193: 43319.27
A194: TA Securities Holdings Berhad | B194: SS | C194: 86084.24
A195: TA Securities Holdings Berhad | B195: SS | C195: 36274.57
A196: TA Securities Holdings Berhad | B196: SS | C196: 83230.58
A197: TA Securities Holdings Berhad | B197: SS | C197: 148660.27
A198: TA Securities Holdings Berhad | B198: SS | C198: 116655
A199: TA Securities Holdings Berhad | B199: SS | C199: 74602.59
A200: TA Securities Holdings Berhad | B200: SS | C200: 222579.59
... 3 more rows

Sheet InPricing (hidden)
A2: qValDate | B2: NAV | C2: BuyPrice | D2: SellPrice | E2: ValPrice
A3: 2011-05-31 | B3: 1308538.44 | C3: 0.995 | D3: 0.995 | E3: 0.99501634
A4: 2011-06-30 | B4: 1284497.43 | C4: 0.9998 | D4: 0.9998 | E4: 0.99980714
A5: 2011-07-31 | B5: 1280452.28 | C5: 1.0033 | D5: 1.0033 | E5: 1.00330954
A6: 2011-08-31 | B6: 1172482.09 | C6: 0.9186 | D6: 0.9186 | E6: 0.91863186
A7: 2011-09-30 | B7: 1096914.04 | C7: 0.8594 | D7: 0.8594 | E7: 0.8593513
A8: 2011-10-31 | B8: 1176540.95 | C8: 0.9179 | D8: 0.9179 | E8: 0.91791717
A9: 2011-11-30 | B9: 1144090.65 | C9: 0.919 | D9: 0.919 | E9: 0.91903858
A10: 2011-12-31 | B10: 1211136.46 | C10: 0.9712 | D10: 0.9712 | E10: 0.97124077
A11: 2012-01-31 | B11: 1216455.26 | C11: 0.977 | D11: 0.977 | E11: 0.9770304
A12: 2012-02-29 | B12: 1219432.14 | C12: 0.9934 | D12: 0.9934 | E12: 0.9933589
A13: 2012-03-31 | B13: 726032.43 | C13: 0.9972 | D13: 0.9972 | E13: 0.99723851
A14: 2012-04-30 | B14: 1125325.63 | C14: 0.9989 | D14: 0.9989 | E14: 0.99894005
A15: 2012-05-31 | B15: 1138795.27 | C15: 1.0109 | D15: 1.0109 | E15: 1.01089691
A16: 2012-06-30 | B16: 1137873.71 | C16: 1.0265 | D16: 1.0265 | E16: 1.02650012
A17: 2012-07-17 | B17: 1162844.82 | C17: 1.057 | D17: 1.057 | E17: 1.05700975

Sheet InIndex (hidden)
A2: ValueDate | B2: qIndexBenchMark | C2: Indices
A3: 2011-05-31 | B3: KLCI | C3: 1558.29
A4: 2011-06-30 | B4: KLCI | C4: 1579.07
A5: 2011-07-31 | B5: KLCI | C5: 1548.81
A6: 2011-08-31 | B6: KLCI | C6: 1447.27
A7: 2011-09-30 | B7: KLCI | C7: 1387.13
A8: 2011-10-31 | B8: KLCI | C8: 1491.89
A9: 2011-11-30 | B9: KLCI | C9: 1472.1
A10: 2011-12-31 | B10: KLCI | C10: 1530.73
A11: 2012-01-31 | B11: KLCI | C11: 1521.29
A12: 2012-02-29 | B12: KLCI | C12: 1569.65
A13: 2012-03-31 | B13: KLCI | C13: 1596.33
A14: 2012-04-30 | B14: KLCI | C14: 1570.61
A15: 2012-05-31 | B15: KLCI | C15: 1580.67
A16: 2012-06-30 | B16: KLCI | C16: 1599.15
A17: 2012-07-17 | B17: KLCI | C17: 1639.15

Sheet InTWRR (hidden)
A2: qFundCode | B2: ValueDate | C2: LastValueDate | D2: NAV | E2: LVNav | F2: TWRR
A3: HLGTSSF | B3: 40724 | C3: 40723 | D3: 1284497.43 | E3: 1277148.17 | F3: 0.005733829595

Sheet InFund (hidden)
A2: qFundCode | B2: FundName | C2: FinanceYrStart | D2: FinanceYrEnd | E2: qIndexBenchMark | F2: FundCurrency | G2: FundPrefix | H2: CPName
A3: BICMF | B3: BIMB I Cash Management Fund | C3: 2015-07-01 | D3: 2016-06-30 | E3: FBMKLCI | F3: MYR | G3: BICMF | H3: AMANAHRAYA TRUSTEES BERHAD
A4: BICMF3 | B4: BIMB I Cash Management Fund 3 | C4: 2015-12-14 | D4: 2016-12-31 | E4: FBMKLCI | F4: MYR | G4: BICMF3 | H4: AMANAHRAYA TRUSTEES BERHAD
A5: BIMMF | B5: BIMB Invest Money Market Fund | C5: 2015-07-01 | D5: 2016-06-30 | E5: FBMKLCI | F5: MYR | G5: BIMMF | H5: AMANAHRAYA TRUSTEES BERHAD
A6: GD1 | B6: Arabesque i Global Dividend Fund 1 | C6: 2015-11-05 | D6: 2016-03-31 | E6: FBMKLCI | F6: USD | G6: GD1 | H6: DEUTSCHE TRUSTEE MALAYSIA BERHAD
A7: GD1RM | B7: BIMB i Global Dividend Fund 1 (MYR) | C7: 2015-10-01 | D7: 2015-12-31 | E7: FBMKLCI | F7: MYR | G7: GD1RM | H7: MANAGEMENT COMPANY
A8: IB | B8: Fakhim | C8: 2015-09-01 | D8: 2015-08-28 | E8: FBMKLCI | F8: MYR | G8: IB | H8: ABB TRUSTEE BERHAD
A9: ID | B9: Falah | C9: 2015-09-01 | D9: 2015-08-28 | E9: FBMKLCI | F9: MYR | G9: ID | H9: ABB TRUSTEE BERHAD
A10: IF | B10: BIMB I Flexi Fund | C10: 2015-04-01 | D10: 2016-03-31 | E10: FBMKLCI | F10: MYR | G10: IF | H10: AMANAHRAYA TRUSTEES BERHAD
A11: IP | B11: BIMB I Dividend Fund | C11: 2015-11-01 | D11: 2016-10-31 | E11: FBMKLCI | F11: MYR | G11: IP | H11: CIMB ISLAMIC TRUSTEE BERHAD
A12: IS | B12: Munsif | C12: 2015-09-01 | D12: 2015-08-28 | E12: FBMKLCI | F12: MYR | G12: IS | H12: ABB TRUSTEE BERHAD
A13: TP | B13: BIMB I Growth | C13: 2015-07-01 | D13: 2016-06-30 | E13: FBMKLCI | F13: MYR | G13: TP | H13: MAYBANK TRUSTEES BERHAD
